[Event "European Women-ch 2023"]
[Site "Petrovac"]
[Date "2023.03.25"]
[Round "7.15"]
[White "Petrova, Irina"]
[Black "Zhezhovska, Monika"]
[Result "1-0"]
[Annotator "TA"]
[ECO "B21"]
[WhiteElo "2123"]
[BlackElo "1761"]
[PlyCount "31"]
[EventDate "2023.03.15"]
[EventType "swiss"]
[EventCountry "MNE"]
[SourceTitle "playchess.com"]
[Source "ChessBase"]
[SourceQuality "1"]
[TimeControl "40/5400+30:1800+30"]

{[%evp 13,31,-14,2,0,0,-35,-7,-37,-21,-34,6,-4,101,112,89,124,264,274,271,258]} 1. e4 {[%emt 0:00:02]} c5 {[%emt 0:00:20]} 2. d4 {[%emt 0:00:09]} cxd4 {[%emt 0:00:20]} 3. c3 {[%emt 0:00:06]} dxc3 {[%emt 0:01:12]} 4. Nxc3 {[%emt 0:00:05]} e6 {[%emt 0:00:43]} 5. Nf3 {[%emt 0:00:11]} Nc6 {[%emt 0:02:28]} 6. Bc4 {[%emt 0:00:31]} Bc5 {[%emt 0:02:20]} 7. O-O {[%emt 0:01:07]} a6 {[%emt 0:01:40]} 8. Bf4 {[%emt 0:03:05] B21: Sicilian: 2 f4 and Morra Gambit.} b5 {[%emt 0:03:45]} 9. Bb3 {[%emt 0:00:32][%cal Oc3d5]} d6 {[%emt 0:02:56]} 10. Qe2 {[%emt 0:04:58] [#] The position is equal.} Nf6 $146 {[%emt 0:01:40]} ({Predecessor:} 10... Ra7 11. Rfd1 Qe7 12. Rac1 Nf6 13. e5 dxe5 14. Nxe5 Nxe5 15. Qxe5 Bxf2+ 16. Kf1 Bc5 17. Nxb5 axb5 {1-0 Schmidt,P (1424)-Hinkelmann,D (1350) Mecklenburg VP LL2 Ost 1617 2016 (1.7)}) 11. Rfd1 {[%emt 0:00:49] [#] And now e5 would win.} Qc7 {[%emt 0:02:12]} 12. e5 {[%emt 0:11:16]} Nh5 {[%emt 0:19:01]} (12... dxe5 $11 {keeps the balance.} 13. Nxe5 O-O) 13. Be3 $36 {[%emt 0:02:12][%mdl 2048] White has strong initiative. White is more active.} Bxe3 {[%emt 0:04:29]} (13... Nxe5 $2 14. Nxe5 Bxe3 15. fxe3 $18 (15. Qxh5 Bxf2+ {[%mdl 64] Decoy} 16. Kxf2 Qc5+ {[%mdl 64] Pin} 17. Kf1 Qxe5 $18)) 14. Qxe3 {[%emt 0:08:17]} Nxe5 {[%emt 0:01:20]} (14... dxe5 $16 15. Qg5 g6) 15. Nxe5 $18 {[%emt 0:00:20]} dxe5 {[%emt 0:10:37]} 16. Qf3 {[%emt 0:00:07] Inhibits Nf6.   Weighted Error Value: White=0.11 (very precise) /Black=0.51} 1-0

[Event "European Women-ch 2023"]
[Site "Petrovac"]
[Date "2023.03.25"]
[Round "7.16"]
[White "Gaboyan, Susanna"]
[Black "Stefanova, Antoaneta"]
[Result "1-0"]
[Annotator "TA"]
[ECO "B11"]
[WhiteElo "2160"]
[BlackElo "2435"]
[PlyCount "87"]
[EventDate "2023.03.15"]
[EventType "swiss"]
[EventCountry "MNE"]
[SourceTitle "playchess.com"]
[Source "ChessBase"]
[SourceQuality "1"]
[TimeControl "40/5400+30:1800+30"]

{[%evp 9,87,0,0,0,0,2,-10,0,-9,-7,9,-11,31,16,25,13,32,28,27,24,22,0,23,-13,62,71,202,195,198,214,636,570,556,554,1374,1386,1340,1303,1207,0,631,581,551,484,877,566,575,637,604,587,588,597,822,814,1264,986,532,429,12845,12846,12846,12845,12845,12846,12846,12845,29986,29987,29987,29988,29988,29987,29987,12847,12847,12847,12848,12848,29998,29999]} 1. e4 {[%emt 0:00:06]} c6 {[%emt 0:02:45]} 2. Nf3 {[%emt 0:02:32]} d5 {[%emt 0:00:42]} 3. Nc3 {[%emt 0:00:09]} Bg4 {[%emt 0:04:55]} 4. Be2 {[%emt 0:02:06]} Nf6 {[%emt 0:19:19]} 5. Ne5 {[%emt 0:02:49]} Bxe2 {[%emt 0:09:43]} 6. Qxe2 {[%emt 0:00:27] B11: Caro-Kann: Two Knights Variation.} dxe4 {[%emt 0:04:30]} 7. Nxe4 {[%emt 0:00:28] [#] Ng5 is the strong threat.} Qd5 {[%emt 0:02:03][%csl LRe4,LRe5]} 8. Nxf6+ {[%emt 0:02:52] The position is equal.} gxf6 {[%emt 0:00:19]} 9. Nf3 {[%emt 0:00:59] [#]} Rg8 $146 {[%emt 0:03:55]} ({Predecessor:} 9... c5 10. b3 Nc6 11. Bb2 O-O-O 12. O-O-O e5 13. Kb1 Rg8 14. Nh4 Nd4 15. Qh5 h6 {½-½ Munoz Pantoja,M (2507)-Peralta,F (2603) Catalunya-chT 2011 (4)}) 10. O-O {[%emt 0:03:25]} e6 {[%emt 0:02:47]} 11. d4 {[%emt 0:02:24][%cal Bd2d4,Bd4d5][%mdl 32]} Bd6 {[%emt 0:03:19]} 12. Re1 {[%emt 0:01:39]} Nd7 {[%emt 0:06:24]} 13. c4 {[%emt 0:06:18]} Qh5 {[%emt 0:00:29]} 14. Be3 {[%emt 0:14:30][%cal Od4d5]} O-O-O {[%emt 0:08:15] [#]} 15. d5 $1 {[%emt 0:05:13]} c5 {[%emt 0:04:10]} (15... exd5 16. cxd5) 16. b4 {[%emt 0:02:56]} e5 {[%emt 0:19:11]} ({Better is} 16... cxb4 $11 17. Bxa7 Ne5 18. Nxe5 Qxe2 19. Rxe2 Bxe5) 17. g3 $14 {[%emt 0:03:22]} Rg4 {[%emt 0:01:53] White leaves nothing to chance now.} (17... e4 $16 18. Nd2 Qxe2 19. Rxe2 f5) 18. bxc5 {[%emt 0:03:19]} Bxc5 {[%emt 0:01:11]} 19. Rab1 {[%emt 0:01:44] Black must now prevent Qb2.} Rdg8 $2 {[%emt 0:01:44]} (19... b6 20. Nd2 $16) (19... Re4 20. Qb2 b6) 20. Qb2 {[%emt 0:03:13]} b6 {[%emt 0:00:41]} 21. Qb5 {[%emt 0:00:31]} Rxg3+ {[%emt 0:01:34]} 22. hxg3 {[%emt 0:01:01]} Qxf3 {[%emt 0:00:06]} 23. Qc6+ {[%emt 0:00:39]} Kb8 {[%emt 0:00:41]} 24. Qxd7 $2 {[%emt 0:00:21]} (24. Bxc5 $18 Nxc5 25. Qxc5 Rxg3+ 26. fxg3 Qxg3+ 27. Kf1 Qd3+ 28. Kf2 Qc2+ 29. Kf3 Qd3+ 30. Qe3 Qf5+ 31. Kg3 Qg6+ 32. Kh4) 24... Rxg3+ $2 {[%emt 0:01:17][%mdl 8192]} 25. fxg3 $18 {[%emt 0:01:03]} Qxg3+ {[%emt 0:00:10]} 26. Kh1 {[%emt 0:00:09]} Bxe3 {[%emt 0:00:48]} (26... Qf3+ $142 27. Kh2 Bxe3 28. Qd8+ (28. Qxf7 Qf4+ 29. Kh3 Qf5+ 30. Kh2 Qf4+ 31. Kh3 Qf5+ 32. Kh2 Qf4+ $11) 28... Kb7 29. Qd7+ Kb8 30. Qd8+ (30. Qxf7 Qf4+ 31. Kh3 Qf5+ 32. Kh2 Qf4+ 33. Kh3 Qf5+ 34. Kh2 Qf4+ $11) 30... Kb7 31. Qe7+ Kb8 32. Qf8+ (32. Qxf7 Qf4+ 33. Kh3 Qf5+ 34. Kh2 Qf4+ 35. Kh3 Qf5+ 36. Kh2 Qf4+ $11) 32... Kb7 33. Qe7+ Kb8 34. Qf8+ (34. Qxf7 Qf4+ 35. Kh3 Qf5+ 36. Kh2 Qf4+ 37. Kh3 Qf5+ 38. Kh2 Qf4+ $11) 34... Kb7 35. Qxf7+ Ka6) 27. Rxe3 {[%emt 0:05:23]} Qxe3 {[%emt 0:00:03]} 28. Qf5 {[%emt 0:03:58] Repels Qe4+} ({Inferior is} 28. Qxf7 Qe4+ 29. Kh2 Qxb1 30. Qe8+ Kc7 31. Qe7+ Kc8 32. Qe8+ Kc7 33. Qe7+ Kc8 34. Qe8+ Kc7 $11) 28... Qh6+ {[%emt 0:00:50]} 29. Kg1 {[%emt 0:00:55]} Qe3+ {[%emt 0:00:13]} 30. Qf2 {[%emt 0:01:56]} Qd3 {[%emt 0:00:23]} 31. Rb3 {[%emt 0:02:26]} Qxc4 {[%emt 0:00:23]} 32. Qxf6 {[%emt 0:00:16]} Qxd5 {[%emt 0:00:44]} 33. Re3 {[%emt 0:03:21] Active counter play!} Qxa2 {[%emt 0:00:54]} (33... Qd1+ $142 34. Kf2 Qd2+ 35. Re2 Qd4+ 36. Kg2 Qg4+ 37. Kf1 Qh3+ 38. Kf2 Qh2+ 39. Ke3 Qg1+ 40. Rf2 Qe1+ 41. Kf3 Qd1+ 42. Kg2 Qd5+ 43. Kh2 Qc4 44. Qxe5+ Kb7) 34. Qxe5+ {[%emt 0:00:33]} Kb7 {[%emt 0:00:10]} 35. Qe7+ {[%emt 0:00:07]} Kc6 {[%emt 0:00:11]} 36. Qe8+ {[%emt 0:06:22]} Kc5 {[%emt 0:01:01]} 37. Qc8+ {[%emt 0:02:48]} Kd4 {[%emt 0:00:29]} 38. Qc3+ {[%emt 0:03:32]} Kd5 {[%emt 0:00:12]} 39. Rd3+ {[%emt 0:00:27]} Ke6 {[%emt 0:00:16]} 40. Qe1+ {[%emt 0:00:00]} Kf6 {[%emt 0:00:00]} 41. Rf3+ {[%emt 0:01:01]} (41. Qh4+ $142 Kf5 42. Rf3+ Ke5 43. Qf6+ Ke4 44. Qf5+ Kd4 45. Rd3+ Kc4 46. Qd5+ {[%mdl 64] Skewer} (46. Qxh7 $2 {loses.} Qb1+ 47. Kh2 Qxd3 $19) 46... Kb4 47. Qxa2) 41... Kg7 {[%emt 0:01:06]} 42. Qe5+ {[%emt 0:00:07]} Kf8 {[%emt 0:04:01]} 43. Qd6+ {[%emt 0:00:09]} Kg7 {[%emt 0:00:19]} 44. Rg3+ {[%emt 0:00:08] A brilliant game!   Weighted Error Value: White=0.65/Black=1.00} 1-0

[Event "European Women-ch 2023"]
[Site "Petrovac"]
[Date "2023.03.25"]
[Round "7.16"]
[White "Paasikangas, Johanna"]
[Black "Shuqja, Klean"]
[Result "1/2-1/2"]
[Annotator "TA"]
[ECO "E27"]
[WhiteElo "2115"]
[BlackElo "1884"]
[PlyCount "151"]
[EventDate "2023.03.15"]
[EventType "swiss"]
[EventCountry "MNE"]
[SourceTitle "playchess.com"]
[Source "ChessBase"]
[SourceQuality "1"]
[TimeControl "40/5400+30:1800+30"]

{[%evp 10,151,2,0,2,-12,0,9,-6,-58,-43,-65,-38,-30,-38,-37,-10,-19,0,-5,0,-12,0,0,4,0,0,7,34,0,7,0,0,-16,0,0,0,-119,-10,-5,15,6,19,33,16,3,52,-462,33,33,33,33,33,31,33,28,43,31,52,52,52,47,50,50,52,52,52,52,52,52,52,52,52,52,52,52,52,52,52,52,52,52,52,52,52,52,52,52,52,50,50,0,16,23,51,0,0,0,0,19,0,-14,0,-70,-80,-116,0,0,0,0,0,0,0,0,0,0,0,0,0,0,0,0,0,0,0,0,0,0,0,0,0,0,0,0,0,0,0,0,0,0,0,0,0,0]} 1. d4 {[%emt 0:00:03]} Nf6 {[%emt 0:04:10]} 2. c4 {[%emt 0:00:18]} e6 {[%emt 0:00:03]} 3. Nc3 {[%emt 0:00:15]} Bb4 {[%emt 0:00:03]} 4. a3 {[%emt 0:00:21]} Bxc3+ {[%emt 0:00:06]} 5. bxc3 {[%emt 0:00:03]} O-O {[%emt 0:00:16]} 6. Nf3 {[%emt 0:01:21]} d6 {[%emt 0:00:45] E27: Nimzo-Indian: Sämisch: 5...0-0 6 f3.} 7. Qc2 {[%emt 0:01:43]} Qe7 {[%emt 0:02:00]} 8. e4 {[%emt 0:05:43]} e5 {[%emt 0:00:49]} 9. d5 {[%emt 0:03:04]} (9. Bd3 $11) 9... Nbd7 {[%emt 0:02:15] [#]} 10. Bg5 $146 {[%emt 0:03:43]} ({Predecessor:} 10. Bd3 Nc5 11. h4 Nh5 12. g3 f5 13. Nd2 f4 14. Be2 fxg3 15. Bxh5 g2 16. Rg1 Qxh4 {0-1 Dias da Silva,A (2032)-Minetto,A (2107) Birigui U2200 op 1st 2006}) 10... Nc5 {[%emt 0:02:58]} 11. Nd2 {[%emt 0:02:27]} h6 {[%emt 0:02:30]} 12. Be3 {[%emt 0:06:48]} Ncd7 {[%emt 0:14:06] A dynamic duo of knights.} 13. Be2 {[%emt 0:03:29] Wards off Ng4} Re8 {[%emt 0:01:57]} 14. h4 {[%emt 0:07:35]} Nf8 {[%emt 0:09:33]} 15. Qd1 {[%emt 0:04:51]} Ng6 {[%emt 0:09:06]} 16. g3 {[%emt 0:00:31]} Bd7 {[%emt 0:01:58]} 17. h5 {[%emt 0:13:24]} Nf8 {[%emt 0:00:14]} 18. f3 {[%emt 0:04:45]} c6 {[%emt 0:03:27]} 19. Bd3 {[%emt 0:03:59]} Rec8 {[%emt 0:02:44]} 20. Qb3 {[%emt 0:02:42]} b6 {[%emt 0:01:29]} 21. Ke2 {[%emt 0:00:26]} N8h7 {[%emt 0:03:03]} 22. a4 {[%emt 0:03:09]} Rab8 {[%emt 0:02:35]} 23. a5 {[%emt 0:04:27] [#]} (23. Qc2 $11 {remains equal.}) 23... bxa5 {[%emt 0:03:58]} (23... b5 $1 $17 {[%cal Rb5c4] White must now prevent ...bxc4.} 24. cxb5 (24. Bxa7 $2 bxc4 25. Qxb8 cxd3+ 26. Kxd3 Rxb8 $19) 24... cxd5) 24. Qa3 $1 $11 {[%emt 0:01:06]} c5 {[%emt 0:09:44]} 25. Qxa5 {[%emt 0:00:39]} Rb7 {[%emt 0:01:05]} 26. Bc2 {[%emt 0:01:42]} Rcb8 {[%emt 0:02:35]} 27. Kd3 {[%emt 0:01:59]} Ng5 {[%emt 0:03:24]} (27... Bc8 $11) 28. Ba4 $2 {[%emt 0:08:14][%mdl 8192] [#]} (28. Bxg5 $14 {keeps the upper hand.} hxg5 29. g4) 28... Bxa4 $2 {[%emt 0:04:26]} ({Black should play} 28... Nxf3 $1 $19 29. Bc6 (29. Nxf3 $2 {is the wrong capture.} Nxe4 30. Bc2 Nxg3 $19) 29... Bxc6 30. dxc6 Nxd2 31. Bxd2 (31. cxb7 $2 {too greedy.} Qxb7 32. Rh4 Ndxe4 $19) 31... Rc7) 29. Qxa4 $14 {[%emt 0:00:12]} Nd7 {[%emt 0:02:06][%cal Of7f5]} 30. g4 {[%emt 0:03:53] Active counter play!} Nb6 {[%emt 0:02:46]} 31. Qc2 {[%emt 0:05:51]} Nc8 {[%emt 0:03:36]} 32. Ra2 {[%emt 0:00:09]} (32. Rab1 {feels hotter.} Nb6 33. Rb5 Qf6 34. Qa2) 32... f6 {[%emt 0:02:54]} 33. Ke2 {[%emt 0:01:12][%cal Bd3e2,Be2f2,Bf2g3][%mdl 32]} (33. Qc1 {seems wilder.} Ra8 34. Qa1 Qf7 35. Ke2) 33... Rb6 {[%emt 0:00:49]} 34. Kf2 {[%emt 0:04:01]} Qb7 {[%emt 0:01:28]} 35. Qa4 {[%emt 0:00:53]} Kf8 {[%emt 0:00:28]} 36. Kg3 {[%emt 0:00:17]} Qe7 {[%emt 0:01:02]} 37. Rha1 {[%emt 0:00:21]} R8b7 {[%emt 0:01:26]} 38. Qc2 {[%emt 0:00:41]} Nf7 {[%emt 0:00:44]} 39. Nf1 {[%emt 0:00:21]} Qc7 {[%emt 0:00:31]} 40. Bc1 {[%emt 0:00:00]} Qb8 {[%emt 0:00:00]} 41. Ne3 {[%emt 0:00:39]} Qc7 {[%emt 0:11:00]} 42. Nf5 {[%emt 0:01:33]} Qb8 {[%emt 0:02:17]} 43. Ra6 {[%emt 0:04:27]} Rxa6 {[%emt 0:04:38]} 44. Rxa6 {[%emt 0:00:06]} Rb6 {[%emt 0:01:48]} 45. Ra2 {[%emt 0:01:06]} Qb7 {[%emt 0:01:17]} 46. Qa4 {[%emt 0:01:55]} Qc7 {[%emt 0:01:34]} 47. Nh4 {[%emt 0:00:36] Intending Ng6+ and mate.} Ng5 {[%emt 0:06:28]} 48. Qc2 {[%emt 0:03:45]} (48. Be3 {is interesting.} Qb7 49. Ng6+ Kf7 50. Qa5) 48... Qb7 {[%emt 0:03:35]} 49. Ng2 {[%emt 0:01:31]} Ra6 {[%emt 0:00:58]} 50. Ne1 {[%emt 0:00:51]} (50. Rb2 $14 Rb6 51. Rxb6 Nxb6 52. Bxg5 fxg5 53. Qa2) 50... Rxa2 {[%emt 0:00:12]} 51. Qxa2 {[%emt 0:00:05]} Nb6 {[%emt 0:01:06]} 52. Nc2 {[%emt 0:00:44]} (52. Ng2 $14) 52... Qd7 $11 {[%emt 0:00:40]} 53. Kf2 {[%emt 0:01:30]} Qa4 {[%emt 0:00:46]} 54. Qxa4 {[%emt 0:00:17]} Nxa4 {[%emt 0:00:01][%mdl 4096] Endgame KBN-KNN} 55. Na3 {[%emt 0:01:52]} a6 {[%emt 0:00:28]} 56. Bd2 {[%emt 0:00:22]} (56. Bxg5 $11 fxg5 57. Nc2) 56... Nb6 $15 {[%emt 0:00:17]} 57. Bxg5 {[%emt 0:01:06]} hxg5 $17 {[%emt 0:01:41] KN-KN} (57... fxg5 $17 58. Nc2 a5) 58. Ke2 $11 {[%emt 0:00:19] The position is equal.} Kf7 {[%emt 0:00:41]} 59. Nc2 {[%emt 0:00:46]} Na4 {[%emt 0:00:51]} 60. Kd2 {[%emt 0:00:19]} g6 {[%emt 0:00:28]} 61. Ne3 {[%emt 0:01:21] Strongly threatening hxg6+.} Nb6 {[%emt 0:00:17]} 62. Kd3 {[%emt 0:00:41]} Kg7 {[%emt 0:00:17]} 63. hxg6 {[%emt 0:00:09]} Kxg6 {[%emt 0:00:28]} 64. Nf5 {[%emt 0:00:06]} Nc8 {[%emt 0:00:21]} 65. Kc2 {[%emt 0:00:09] Kb3 would be deadly.} Kf7 $1 {[%emt 0:00:30]} 66. Kb3 {[%emt 0:00:06] Hoping for Ka4.} Ke8 $1 {[%emt 0:00:23]} 67. Ka4 {[%emt 0:00:06] aiming for Ka5.} Nb6+ {[%emt 0:00:28]} 68. Kb3 {[%emt 0:02:36]} Kd7 {[%emt 0:00:00]} 69. Ne3 {[%emt 0:02:14]} Ke7 {[%emt 0:00:00]} 70. Kc2 {[%emt 0:01:12]} Kd7 {[%emt 0:00:00]} 71. Kd3 {[%emt 0:00:16]} Na4 {[%emt 0:00:10]} 72. Kc2 {[%emt 0:03:31]} Nb6 {[%emt 0:00:29]} 73. Kb3 {[%emt 0:00:21]} Kc7 {[%emt 0:01:05]} 74. Nf1 {[%emt 0:03:39]} Kd7 {[%emt 0:00:19]} 75. Nd2 {[%emt 0:00:48]} Kc7 {[%emt 0:00:25]} 76. Nf1 {[%emt 0:03:01] Weighted Error Value: White=0.23 (precise) /Black=0.23 (precise)} 1/2-1/2

[Event "European Women-ch 2023"]
[Site "Petrovac"]
[Date "2023.03.25"]
[Round "7.17"]
[White "Hrescak, Ivana"]
[Black "Zawadzka, Jolanta"]
[Result "1/2-1/2"]
[Annotator "TA"]
[ECO "E11"]
[WhiteElo "2127"]
[BlackElo "2391"]
[PlyCount "103"]
[EventDate "2023.03.15"]
[EventType "swiss"]
[EventCountry "MNE"]
[SourceTitle "playchess.com"]
[Source "ChessBase"]
[SourceQuality "1"]
[TimeControl "40/5400+30:1800+30"]

{[%evp 9,103,9,12,8,16,10,28,31,27,10,13,9,12,16,16,17,33,11,13,9,9,13,6,0,0,0,0,0,0,0,0,0,0,0,0,0,25,25,34,26,51,55,70,56,76,70,83,70,145,0,164,160,145,147,173,130,260,258,250,220,233,238,256,246,235,226,229,190,309,194,193,179,264,267,236,157,174,107,123,101,117,85,81,81,96,91,89,0,75,32,90,0,64,0,81,0]} 1. d4 {[%emt 0:00:03]} Nf6 {[%emt 0:00:07]} 2. c4 {[%emt 0:00:13]} e6 {[%emt 0:00:04]} 3. Nf3 {[%emt 0:00:26]} d5 {[%emt 0:00:17]} 4. g3 {[%emt 0:00:07]} Bb4+ {[%emt 0:00:10]} 5. Bd2 {[%emt 0:01:53]} Be7 {[%emt 0:00:08]} 6. Qc2 {[%emt 0:02:04] E11: Bogo-Indian.} O-O {[%emt 0:01:06]} 7. Bg2 {[%emt 0:00:38]} a5 {[%emt 0:00:50]} 8. O-O {[%emt 0:01:50] White has an edge.} c6 {[%emt 0:00:06]} 9. Bg5 {[%emt 0:22:21]} Nbd7 {[%emt 0:06:08]} 10. Nbd2 {[%emt 0:05:55]} h6 {[%emt 0:02:04]} 11. Bxf6 {[%emt 0:03:46]} Bxf6 {[%emt 0:01:30]} 12. e4 {[%emt 0:00:06]} b6 {[%emt 0:01:03] [#]} 13. Rfe1 $146 {[%emt 0:03:12]} ({Predecessor:} 13. exd5 exd5 14. cxd5 c5 15. Ne4 Ba6 16. Rfd1 c4 17. a4 g6 18. Re1 Bg7 19. Nc3 {1-0 Jurcik,M (2349)-Brzezinski,A (2238) Prague op-A 15th 2016 (7)}) 13... Bb7 {[%emt 0:06:43]} 14. Rac1 {[%emt 0:15:05]} Rc8 {[%emt 0:06:17]} 15. Qb3 {[%emt 0:04:37]} Rc7 {[%emt 0:09:56]} 16. a3 {[%emt 0:02:01]} Qb8 {[%emt 0:04:01]} 17. cxd5 {[%emt 0:08:29]} cxd5 {[%emt 0:00:20] White must now prevent ...Rxc1.} 18. e5 {[%emt 0:00:11]} Be7 {[%emt 0:00:22]} 19. Rxc7 {[%emt 0:00:28]} Qxc7 {[%emt 0:00:08]} 20. Bf1 {[%emt 0:00:08]} Rc8 {[%emt 0:08:19]} 21. Bd3 {[%emt 0:00:04]} Nb8 {[%emt 0:00:16]} 22. Nb1 {[%emt 0:00:33]} Bc6 {[%emt 0:07:23]} 23. Nc3 {[%emt 0:01:13]} Qb7 {[%emt 0:02:16]} 24. Nb5 {[%emt 0:05:46]} Bd7 {[%emt 0:01:17]} 25. h4 {[%emt 0:02:08]} Rc4 {[%emt 0:05:49][%mdl 64] Hoping for ...a4. Deflection} 26. Nc3 {[%emt 0:08:31]} (26. Bxc4 dxc4 27. Qxc4 Qxf3 $17) 26... a4 {[%emt 0:09:10]} 27. Qd1 {[%emt 0:01:55]} Rc8 {[%emt 0:00:55][%cal Oe7a3]} 28. Bb1 {[%emt 0:05:10]} b5 {[%emt 0:02:47]} ({Black should try} 28... Kf8 $1 $14) 29. h5 {[%emt 0:00:15]} (29. Qd3 $16 {White threatens Qh7+ and mate.} Kf8 30. Qh7) 29... Be8 $2 {[%emt 0:00:20]} (29... Kf8 $11 {and Black stays safe.}) 30. Qd3 $18 {[%emt 0:01:29] Threatening mate with Qh7+.} g6 {[%emt 0:00:34]} 31. Kg2 $1 {[%emt 0:01:12]} b4 {[%emt 0:02:45]} 32. axb4 {[%emt 0:00:03]} Qxb4 {[%emt 0:00:09]} (32... Bxb4 $16 33. Rh1 Bf8) 33. Rh1 {[%emt 0:02:05][%cal Rh5g6]} Qxb2 {[%emt 0:08:29]} 34. hxg6 $1 {[%emt 0:00:34][%mdl 64] Discovered Attack} fxg6 {[%emt 0:00:15] [#]} (34... Qxc3 $2 35. gxf7+ Bxf7 36. Qh7+ Kf8 37. Qh8+ Bg8 38. Bg6 $18) 35. Nxa4 {[%emt 0:01:32][%mdl 576] Deflection} Qa3 {[%emt 0:00:54] [#]} 36. Qd2 {[%emt 0:00:50][%cal Od2h6]} h5 {[%emt 0:05:07] [#]} (36... Bxa4 {leads to mate.} 37. Qxh6 (37. Bxg6 Bf8 $18) (37. Bxg6 Bf8 $16)) 37. Nc5 {[%emt 0:00:34][%mdl 512]} Bxc5 {[%emt 0:00:48]} 38. dxc5 {[%emt 0:00:04][%cal Oh1h5]} Nd7 {[%emt 0:05:59]} (38... Qa7 {is a better defense.} 39. Nd4 Qe7) 39. Qg5 {[%emt 0:01:46]} ({Weaker is} 39. Qh6 Nf8 $16) 39... Nf8 {[%emt 0:00:21]} 40. Rxh5 {[%emt 0:00:00]} Qxc5 {[%emt 0:00:00]} (40... Rxc5 $142 41. Rh6 Rc7) 41. Rh4 {[%emt 0:09:28] Qf6 would kill now.} Rc7 {[%emt 0:06:07]} 42. Qf6 {[%emt 0:07:01][%csl Gf6][%cal Rh4h8]} Rg7 {[%emt 0:00:18] [#]} 43. Ng5 {[%emt 0:02:29]} (43. Nh2 $1 $18 {[%cal Rh2g4] Ng4 is the strong threat.} Qe7 44. Ng4 Qxf6 45. Nxf6+ Kf7 46. Rb4) 43... Qe7 $16 {[%emt 0:01:43]} 44. Qf4 {[%emt 0:00:06] aiming for Qg4. White has more active pieces.} Nh7 {[%emt 0:03:40]} 45. Nxh7 {[%emt 0:05:04]} Rxh7 {[%emt 0:00:03]} 46. Rg4 {[%emt 0:01:23]} Kg7 {[%emt 0:00:49]} 47. Qf3 {[%emt 0:05:04]} Rh5 {[%emt 0:01:30]} 48. Qf4 {[%emt 0:01:13]} (48. Qc3 $16) 48... Qd8 {[%emt 0:03:45]} (48... Rh7 $1 $11 {keeps the balance.}) 49. Bd3 {[%emt 0:01:16]} Qe7 {[%emt 0:01:47]} (49... Bf7 $14) 50. Bb1 {[%emt 0:00:46]} (50. Qc1 $16) 50... Qd8 {[%emt 0:05:52]} (50... Rh7 $11) 51. Bd3 {[%emt 0:00:05]} Qe7 {[%emt 0:00:43]} 52. Bb1 {[%emt 0:00:29] Weighted Error Value: White=0.21 (precise) /Black=0.26 (precise)} (52. Qc1 $16) 1/2-1/2

[Event "European Women-ch 2023"]
[Site "Petrovac"]
[Date "2023.03.25"]
[Round "7.17"]
[White "Makropoulou, Marina"]
[Black "Huseynova, Lala"]
[Result "1-0"]
[Annotator "TA"]
[ECO "B90"]
[WhiteElo "2102"]
[BlackElo "1694"]
[PlyCount "55"]
[EventDate "2023.03.15"]
[EventType "swiss"]
[EventCountry "MNE"]
[SourceTitle "playchess.com"]
[Source "ChessBase"]
[SourceQuality "1"]
[TimeControl "40/5400+30:1800+30"]

{[%evp 13,55,18,31,28,27,41,41,19,25,33,22,17,58,60,190,156,240,212,218,220,558,575,647,632,590,568,579,556,571,550,680,669,932,673,774,793,788,780,752,716,1427,1353,1362,1347]} 1. e4 {[%emt 0:00:04]} c5 {[%emt 0:00:21]} 2. Nf3 {[%emt 0:00:12]} d6 {[%emt 0:00:05]} 3. d4 {[%emt 0:00:13]} cxd4 {[%emt 0:00:13]} 4. Nxd4 {[%emt 0:00:07]} Nf6 {[%emt 0:00:04]} 5. Nc3 {[%emt 0:00:21]} a6 {[%emt 0:00:03]} 6. a4 {[%emt 0:00:11]} e5 {[%emt 0:01:32]} 7. Nf3 {[%emt 0:00:14]} Be6 {[%emt 0:07:46]} 8. Ng5 {[%emt 0:01:16] B90: Sicilian Najdorf: Unusual White 6th moves, 6 Be3 Ng4 and 6 Be3 e5.} Qc7 {[%emt 0:05:05]} 9. Nxe6 {[%emt 0:06:09]} fxe6 {[%emt 0:00:07]} 10. Qd3 {[%emt 0:06:42] [#] White is slightly better.} Nc6 $146 {[%emt 0:06:17] ...Nb4 is the strong threat.} ({Predecessor:} 10... Nbd7 11. Qc4 Qxc4 12. Bxc4 Kf7 13. O-O Rc8 14. Ba2 Nc5 15. f3 Be7 16. Be3 Rhd8 {1-0 Schulze,D (1980)-Grohmann,K (1898) BL 0910 (Women) 2009 (3.5)}) 11. Qh3 $1 {[%emt 0:02:49]} Nd4 {[%emt 0:07:48]} 12. Bd3 {[%emt 0:01:19]} Be7 {[%emt 0:02:43]} 13. Be3 {[%emt 0:00:37]} Qb6 {[%emt 0:13:17]} (13... Rc8 $14) 14. O-O {[%emt 0:04:42]} Nd7 {[%emt 0:12:39]} (14... Qxb2 $2 15. Bxd4 exd4 16. Ne2) (14... Qc7 $16 15. a5 Rd8) 15. Ne2 {[%emt 0:18:28]} Nf8 {[%emt 0:08:06]} 16. Kh1 {[%emt 0:01:38] [#] Threatens to win with c3.} Bf6 $2 {[%emt 0:13:48]} (16... Qc7 {is a better chance.} 17. Nxd4 exd4) 17. c3 $18 {[%emt 0:00:40] White is clearly winning.} Qb3 {[%emt 0:00:19]} 18. Ra3 {[%emt 0:12:23]} ({Not} 18. Nxd4 exd4 19. Bxd4 h5 $18) 18... Qxb2 {[%emt 0:02:45][%cal Od4e2]} 19. Bc1 {[%emt 0:00:07]} Qb6 {[%emt 0:00:32]} 20. cxd4 {[%emt 0:00:09]} exd4 {[%emt 0:00:06]} 21. Nf4 {[%emt 0:00:20]} Rc8 {[%emt 0:05:19]} 22. Nxe6 {[%emt 0:01:12]} Rc3 {[%emt 0:00:21]} 23. Nf4 {[%emt 0:04:12]} Qc5 {[%emt 0:01:55]} 24. Rxc3 {[%emt 0:00:53]} dxc3 {[%emt 0:00:13]} 25. Be3 {[%emt 0:01:24]} Qc6 {[%emt 0:00:46]} 26. Nd5 {[%emt 0:00:53]} Qxa4 {[%emt 0:00:50]} 27. Qc8+ {[%emt 0:02:15]} Kf7 {[%emt 0:00:07]} 28. Qxb7+ {[%emt 0:00:37] White took control after the opening.   Weighted Error Value: White=0.32/Black=0.65} 1-0